Workbook

Sheet Kalkulator
B8: TYP BUDYNKU | C8: powyżej 140 kWh/m2/rok | H8: Ilość lat kredytu: | I8: Wpłata własna:
B9: POZIOM DOTACJI | C9: Najwyższy | E9: =IF(AND(OR($C$8='Dane wejściowe'!$A$2,Kalkulator!$C$8='Dane wejściowe'!$A$3),$C$9='Dane wejściowe'!$B$2),"<- Podwyższony","") ->  | H9: 5
B11: AUDYT + ŚWIADECTWO CHARAKTERYSTYKI | C11: TAK
H12: MAX DOTACJA CZYSTE POWIETRZE | I12: =Matryca!N13 -> 124000
B13: PC/KOCIOŁ | C13: TAK | H13: WYKORZYSTNA DOTACJA CZYSTE POWIETRZE | I13: =IF($C$9='Dane wejściowe'!$B$3,MIN($I$12,'dotacja 18.07.'!I3),_xlfn.IFS(Matryca!N3="Nie dotyczy",Matryca!N13,Matryca!N3<('dotacja 18.07.'!I3),Matryca!N3,Matryca!N3>=('dotacja 18.07.'!I3),'dotacja 18.07.'!I3)) -> 20500
B14: =IF($C$13='Dane wejściowe'!$D$2,'Dane wejściowe'!$E$1,"") -> Źródło grzewcze | C14: Kocioł na pellet
B15: =IF(AND($C$13="TAK",$C$14<>"Pompa Ciepła"),"Zasobnik CWU","") -> Zasobnik CWU | C15: =IF(B15="Zasobnik CWU","TAK","") -> TAK | H15: AUDYT + ŚWIADECTWO CHARAKTERYSTYKI | I15: =IF($I$19=0,"",IF($C$11="NIE",0,3075)) -> 3075
B16: =IF($C$13="TAK","Modernizacja CO","") -> Modernizacja CO | C16: WYMIANA GRZEJNIKÓW
B17: =IF($C$13="TAK","Ilość Grzejników (szt.)","") -> Ilość Grzejników (szt.) | C17: 0 | H17: CENA NETTO | I17: =IF(OR(E29="<- Zmień materiał !",E32="<- Wybierz TAK lub NIE !"),"",'Baza (2)'!F4) -> 25000
H18: VAT | I18: =IF(I17="","",'Baza (2)'!F6) -> 2000
B19: TERMOMODERNIZACJA | H19: CENA BRUTTO | I19: =IF(I17="","",IF(AND(Kalkulator!$C$8='Dane wejściowe'!$A$4,Kalkulator!$B$20='Dane wejściowe'!$F$3),0,'Baza (2)'!F8)) -> 27000
B20: TAK | E20: =IF(AND($C$8='Dane wejściowe'!$A$4,$B$20<>'Dane wejściowe'!$F$2),"<- TAK","") -> 
H21: Wpłata własna klienta | I21: ='Baza (2)'!F28 -> 9575
B22: =IF($B$20='Dane wejściowe'!$F$2,'Dane wejściowe'!$G$1,"") -> REKUPERACJA
B23: NIE | H23: MARŻA DODATKOWA | I23: 0
B24: =IF($B$23="TAK","Ilość rekuperatorów ściennych (szt.)","") ->  | C24: 4
B26: =IF($B$20='Dane wejściowe'!$F$2,'Dane wejściowe'!$I$1,"") -> OCIEPLENIE DACH STROP
B27: NIE
B28: =IF($B$20='Dane wejściowe'!$F$3,"",IF($B$27='Dane wejściowe'!$I$2,'Dane wejściowe'!$J$1,"")) ->  | C28: Strop
B29: =IF($B$20='Dane wejściowe'!$F$3,"",IF($B$27='Dane wejściowe'!$I$2,'Dane wejściowe'!$K$1,"")) ->  | C29: STYROPAPA
B30: =IF($B$20='Dane wejściowe'!$F$3,"",IF($B$27='Dane wejściowe'!$I$2,'Dane wejściowe'!$L$1,"")) ->  | C30: 1
B31: =IF($B$20='Dane wejściowe'!$F$3,"",IF(AND($B$27='Dane wejściowe'!$I$2,$C$28="Dach"),"Uchwyty GK",IF(AND($B$27='Dane wejściowe'!$I$2,$C$28="Strop"),"",""))) ->  | C31: NIE
B32: =IF($B$20='Dane wejściowe'!$F$3,"",IF(AND($B$27='Dane wejściowe'!$I$2,$C$28="Dach"),"Membrana paroprzepuszczalna",IF(AND($B$27='Dane wejściowe'!$I$2,$C$28="Strop",$C$29="STYROPAPA"),"Murowanie ogniomurów + przełożenie rynien (mb)",""))) ->  | C32: 0 | E32: =H32 ->  | H32: =IFERROR(_xlfn.IFS($B$32="Murowanie ogniomurów + przełożenie rynien (mb)","<- Wpisz ilość mb !",$B$32="Membrana paroprzepuszczalna","<- Wpisz TAK lub NIE !"),"") -> 
B33: =IF($B$20='Dane wejściowe'!$F$3,"",IF(AND($B$27='Dane wejściowe'!$I$2,$C$28="Strop",$C$29="STYROPAPA"),"Opierzenie (mb)","")) -> 
B34: =IF($B$20='Dane wejściowe'!$F$3,"",IF(AND($B$27='Dane wejściowe'!$I$2,$C$28="Strop",$C$29="STYROPAPA"),"Murowanie komina (szt.)","")) -> 
B36: =IF($B$20='Dane wejściowe'!$F$2,'Dane wejściowe'!$N$1,"") -> OCIEPLENIE ŚCIAN ZEWNĘTRZNYCH - STYROPIAN + TYNK
B37: NIE
B38: =IF($B$20='Dane wejściowe'!$F$3,"",IF($B$37='Dane wejściowe'!$N$2,'Dane wejściowe'!$O$1,"")) ->  | C38: 1
B39: =IF($B$20='Dane wejściowe'!$F$3,"",IF($B$37='Dane wejściowe'!$N$2,"Parapety zewnętrzne (mb)","")) ->  | C39: 1
B40: =IF($B$20='Dane wejściowe'!$F$3,"",IF($B$37='Dane wejściowe'!$N$2,"Przedłużenie dachu - opierzenie (mb)","")) ->  | C40: 1
B42: =IF($B$20='Dane wejściowe'!$F$2,'Dane wejściowe'!$Q$1,"") -> DRZWI
B43: NIE
B44: =IF($B$20='Dane wejściowe'!$F$3,"",IF($B$43='Dane wejściowe'!$Q$2,'Dane wejściowe'!$R$1,"")) ->  | C44: 1
B45: =IF($B$20='Dane wejściowe'!$F$3,"",IF($B$43='Dane wejściowe'!$Q$2,"Model drzwi","")) ->  | C45: Pełne
B46: =IF($B$20='Dane wejściowe'!$F$3,"",IF($B$43='Dane wejściowe'!$Q$2,"SUMA POWIERZCHNI DRZWI","")) ->  | C46: =IF($C$44=1,PRODUCT($C$48:$D$48),IF($C$44=2,SUM(PRODUCT($C$48:$D$48),PRODUCT($C$49:$D$49)),IF($C$44=3,SUM(PRODUCT($C$48:$D$48),PRODUCT($C$49:$D$49),PRODUCT($C$50:$D$50)),""))) -> 1
C47: =IF($B$43='Dane wejściowe'!$Q$2,'Dane wejściowe'!$T$2,"") ->  | D47: =IF($B$43='Dane wejściowe'!$Q$2,'Dane wejściowe'!$T$3,"") -> 
B48: =IF($B$20='Dane wejściowe'!$F$3,"",IF(AND($B$43='Dane wejściowe'!$Q$2,$C$44>='Dane wejściowe'!$R$2),'Dane wejściowe'!$S$2,"")) ->  | C48: 1 | D48: 1
B49: =IF($B$20='Dane wejściowe'!$F$3,"",IF(AND($B$43='Dane wejściowe'!$Q$2,$C$44>='Dane wejściowe'!$R$3),'Dane wejściowe'!$S$3,"")) -> 
B50: =IF($B$20='Dane wejściowe'!$F$3,"",IF(AND($B$43='Dane wejściowe'!$Q$2,$C$44>='Dane wejściowe'!$R$4),'Dane wejściowe'!$S$4,"")) -> 
B52: =IF($B$20='Dane wejściowe'!$F$2,'Dane wejściowe'!$V$1,"") -> OKNA
B53: NIE
B54: =IF($B$20='Dane wejściowe'!$F$3,"",IF($B$53='Dane wejściowe'!$V$2,'Dane wejściowe'!$W$1,"")) ->  | C54: 1
B55: =IF($B$20='Dane wejściowe'!$F$3,"",IF($B$53='Dane wejściowe'!$V$2,"Kolor Okien","")) ->  | C55: Białe
B56: =IF($B$20='Dane wejściowe'!$F$3,"",IF($B$53='Dane wejściowe'!$V$2,"SUMA POWIERZCHNI OKIEN","")) ->  | C56: =IF($C$54=1,PRODUCT($C$58:$D$58),IF($C$54=2,SUM(PRODUCT($C$58:$D$58),PRODUCT($C$59:$D$59)),IF($C$54=3,SUM(PRODUCT($C$58:$D$58),PRODUCT($C$59:$D$59),PRODUCT($C$60:$D$60)),IF($C$54=4,SUM(PRODUCT($C$58:$D$58),PRODUCT($C$59:$D$59),PRODUCT($C$60:$D$60),PRODUCT($C$61:$D$61)),IF($C$54=5,SUM(PRODUCT($C$58:$D$58),PRODUCT($C$59:$D$59),PRODUCT($C$60:$D$60),PRODUCT($C$61:$D$61),PRODUCT($C$62:$D$62)),IF($C$54=6,SUM(PRODUCT($C$58:$D$58),PRODUCT($C$59:$D$59),PRODUCT($C$60:$D$60),PRODUCT($C$61:$D$61),PRODUCT($C$62:$D$62),PRODUCT($C$63:$D$63)),IF($C$54=7,SUM(PRODUCT($C$58:$D$58),PRODUCT($C$59:$D$59),PRODUCT($C$60:$D$60),PRODUCT($C$61:$D$61),PRODUCT($C$62:$D$62),PRODUCT($C$63:$D$63),PRODUCT($C$64:$D$64)),IF($C$54=8,SUM(PRODUCT($C$58:$D$58),PRODUCT($C$59:$D$59),PRODUCT($C$60:$D$60),PRODUCT($C$61:$D$61),PRODUCT($C$62:$D$62),PRODUCT($C$63:$D$63),PRODUCT($C$64:$D$64),PRODUCT($C$65:$D$65)),IF($C$54=9,SUM(PRODUCT($C$58:$D$58),PRODUCT($C$59:$D$59),PRODUCT($C$60:$D$60),PRODUCT($C$61:$D$61),PRODUCT($C$62:$D$62),PRODUCT($C$63:$D$63),PRODUCT($C$64:$D$64),PRODUCT($C$65:$D$65),PRODUCT($C$66:$D$66)),IF($C$54=10,SUM(PRODUCT($C$58:$D$58),PRODUCT($C$59:$D$59),PRODUCT($C$60:$D$60),PRODUCT($C$61:$D$61),PRODUCT($C$62:$D$62),PRODUCT($C$63:$D$63),PRODUCT($C$64:$D$64),PRODUCT($C$65:$D$65),PRODUCT($C$66:$D$66),PRODUCT($C$67:$D$67)),"")))))))))) -> 1
C57: =IF($B$53='Dane wejściowe'!$V$2,'Dane wejściowe'!$Y$2,"") ->  | D57: =IF($B$53='Dane wejściowe'!$V$2,'Dane wejściowe'!$Y$3,"") -> 
B58: =IF($B$20='Dane wejściowe'!$F$3,"",IF(AND($B$53='Dane wejściowe'!$V$2,$C$54>='Dane wejściowe'!$W$2),'Dane wejściowe'!$X$2,"")) ->  | C58: 1 | D58: 1
B59: =IF($B$20='Dane wejściowe'!$F$3,"",IF(AND($B$53='Dane wejściowe'!$V$2,$C$54>='Dane wejściowe'!$W$3),'Dane wejściowe'!$X$3,"")) ->  | C59: 1 | D59: 20
B60: =IF($B$20='Dane wejściowe'!$F$3,"",IF(AND($B$53='Dane wejściowe'!$V$2,$C$54>='Dane wejściowe'!$W$4),'Dane wejściowe'!$X$4,"")) ->  | C60: 0 | D60: 0
B61: =IF($B$20='Dane wejściowe'!$F$3,"",IF(AND($B$53='Dane wejściowe'!$V$2,$C$54>='Dane wejściowe'!$W$5),'Dane wejściowe'!$X$5,"")) ->  | C61: 0 | D61: 0
B62: =IF($B$20='Dane wejściowe'!$F$3,"",IF(AND($B$53='Dane wejściowe'!$V$2,$C$54>='Dane wejściowe'!$W$6),'Dane wejściowe'!$X$6,"")) ->  | C62: 0 | D62: 0
B63: =IF($B$20='Dane wejściowe'!$F$3,"",IF(AND($B$53='Dane wejściowe'!$V$2,$C$54>='Dane wejściowe'!$W$7),'Dane wejściowe'!$X$7,"")) ->  | C63: 0 | D63: 0
B64: =IF($B$20='Dane wejściowe'!$F$3,"",IF(AND($B$53='Dane wejściowe'!$V$2,$C$54>='Dane wejściowe'!$W$8),'Dane wejściowe'!$X$8,"")) ->  | C64: 0 | D64: 0
B65: =IF($B$20='Dane wejściowe'!$F$3,"",IF(AND($B$53='Dane wejściowe'!$V$2,$C$54>='Dane wejściowe'!$W$9),'Dane wejściowe'!$X$9,"")) ->  | C65: 0 | D65: 0
B66: =IF($B$20='Dane wejściowe'!$F$3,"",IF(AND($B$53='Dane wejściowe'!$V$2,$C$54>='Dane wejściowe'!$W$10),'Dane wejściowe'!$X$10,"")) ->  | C66: 0 | D66: 0
B67: =IF($B$20='Dane wejściowe'!$F$3,"",IF(AND($B$53='Dane wejściowe'!$V$2,$C$54>='Dane wejściowe'!$W$11),'Dane wejściowe'!$X$11,"")) ->  | C67: 0 | D67: 0

Sheet Raty kredytowe
C10: Inbank - kredyt do 10 lat | F10: Santander - kredyt do 10 lat | I10: Cofidis - kredyt do 10 lat
C11: Ilość lat | D11: =Kredyt!J2 -> 5 | F11: Ilość lat | G11: =Kredyt!J3 -> 5 | I11: Ilość lat | J11: =Kredyt!J4 -> 5
C12: Cena instalacji brutto | D12: =Kredyt!E2 -> 9575 | F12: Cena instalacji brutto | G12: =Kredyt!E3 -> 9575 | I12: Cena instalacji brutto | J12: =Kredyt!E4 -> 9575
C13: Wkład własny | D13: =Kredyt!F2 -> 0 | F13: Wkład własny | G13: =Kredyt!F3 -> 0 | I13: Wkład własny | J13: =Kredyt!F4 -> 0
C14: Kwota kredytu | D14: =Kredyt!G2 -> 9575 | F14: Kwota kredytu | G14: =Kredyt!G3 -> 9575 | I14: Kwota kredytu | J14: =Kredyt!G4 -> 9575
C15: Maksymalna kwota kredytu | D15: 100000 | F15: Maksymalna kwota kredytu | G15: 80000 | I15: Maksymalna kwota kredytu | J15: 100000
C16: RATA MIESIĘCZNA | D16: =Kredyt!M2 -> 253.0991667 | F16: RATA MIESIĘCZNA | G16: =Kredyt!M3 -> 250.4660417 | I16: RATA MIESIĘCZNA | J16: =Kredyt!M4 -> 260.679375

Sheet Pole ścian
B12: Ściana boczna sczytowa
F19: wymiar a | H19: 1
F21: wymiar b | H21: 2
F23: wymiar h | H23: 3
F25: Pole ściany | H25: =IF(OR(H19="",H21="",H23=""),"UZUPEŁNIJ WSZYSTKIE WYMIARY !",H19*H21+(0.5*H19*(H23-H21))) -> 2.5
B35: Ściana boczna
F39: wymiar a | H39: 1
F41: wymiar b | H41: 1
F43: Pole ściany | H43: =IF(OR(H39="",H41=""),"UZUPEŁNIJ WSZYSTKIE WYMIARY !",H39*H41) -> 1

Sheet $$
B11: Poziom prowizyjny | E11: Manager
B13: =VLOOKUP(E11,'Prowizja handlowca'!$A$2:$C$4,3,FALSE) -> 6000

Sheet Prowizja handlowca (hidden)
A2: Hunter | B2: 0.25 | C2: =$H$9*B2+$H$13 -> 2500
A3: Doradca | B3: 0.4 | C3: =$H$9*B3+$H$13 -> 4000
A4: Manager | B4: 0.6 | C4: =$H$9*B4+$H$13 -> 6000
C9: (+) Termo | G9: SUMA | H9: =SUM(H10) -> 10000
A10: Pompa Ciepła | B10: 7000 | C10: 15000 | E10: =Kalkulator!B20 -> TAK | F10: =Kalkulator!C13 -> TAK | G10: =Kalkulator!C14 -> Kocioł na pellet | H10: =IF(AND(E10="TAK",F10="TAK"),VLOOKUP(G10,A10:C12,3,FALSE),IF(AND(E10="TAK",F10="NIE"),B13,IF(AND(E10="NIE",F10="TAK"),VLOOKUP(G10,A10:B12,2,FALSE),0))) -> 10000
A11: Kocioł na pellet | B11: 4000 | C11: 10000
A12: Piec zagazowujący drewno | B12: 4000 | C12: 10000
A13: Termomodernizacja | B13: 5000 | G13: =Kalkulator!H23 -> MARŻA DODATKOWA | H13: =IF(AND(E10="NIE",F10="NIE"),0,Kalkulator!I23) -> 0

Sheet Składowe
H10: Powierzchnia | J10: Koszt brutto | L10: Koszt netto | N10: Dofinansowanie | P10: VAT
A12: =Kalkulator!C14 -> Kocioł na pellet | H12: - | J12: ='Baza (2)'!$I$5-J13 -> 27000 | L12: ='Baza (2)'!$I$8-L13 -> 25000 | N12: ='dotacja 18.07.'!I4 -> 20500 | P12: =J12-L12 -> 2000
A13: Modernizacja CO i CWU | H13: - | J13: =L13*1.08 -> 0 | L13: ='Baza (2)'!G35+'Baza (2)'!I35 -> 0 | N13: ='dotacja 18.07.'!I16 -> 0 | P13: =J13-L13 -> 0
A14: AUDYT ENERGETYCZNY | J14: =Kalkulator!$I$15-492 -> 2583 | L14: =J14/1.23 -> 2100
A15: ŚWIADECTWO CHARAKTERYSTYKI ENERGETYCZNEJ | H15: - | J15: =Kalkulator!$I$15-1476 -> 1599 | L15: =J15/1.23 -> 1300 | N15: =Baza!N25 -> 0 | P15: =J15-L15 -> 299
A16: Suma | H16: - | J16: =IF('Baza (2)'!T1='Baza (2)'!A12,SUM(Składowe!J12:K13)+Kalkulator!$I$15,SUM(Składowe!J12:K13)) -> 27000 | L16: =IF('Baza (2)'!T1='Baza (2)'!A12,SUM(Składowe!L12:M13)+(Kalkulator!$I$15/1.23),SUM(Składowe!L12:M13)) -> 25000 | N16: =IF('Baza (2)'!T4='Baza (2)'!A12,SUM(Składowe!N12:O13),SUM(Składowe!N12:O13)) -> 20500 | P16: =IF('Baza (2)'!T4='Baza (2)'!A12,SUM(Składowe!P12:Q13)+(J15-L15),SUM(Składowe!P12:Q13)) -> 2299
A17: Wysokość wpłaty własnej | J17: =(J16-N16) -> 6500
A19: Rekuperacja | H19: - | J19: ='Baza (2)'!J5 -> 0 | L19: ='Baza (2)'!J8 -> 0 | N19: ='Baza (2)'!N20 -> 0 | P19: =J19-L19 -> 0
A20: Dach/stropodach/strop pod nieogrzewanym poddaszem | H20: =Kalkulator!C30 -> 1 | J20: ='Baza (2)'!K5 -> 0 | L20: ='Baza (2)'!K8 -> 0 | N20: ='Baza (2)'!N21 -> 0 | P20: 0
A21: Ściany zewnętrzne/przegrody pionowe | H21: =Kalkulator!C38 -> 1 | J21: ='Baza (2)'!L5 -> 0 | L21: ='Baza (2)'!L8 -> 0 | N21: ='Baza (2)'!N22 -> 0 | P21: 0
A22: Stolarka okienna | H22: =Kalkulator!C56 -> 1 | J22: ='Baza (2)'!N5 -> 0 | L22: ='Baza (2)'!N8 -> 0 | N22: ='Baza (2)'!N23 -> 0 | P22: 0
A23: Stolarka drzwiowa – drzwi zewnętrzne | H23: =Kalkulator!C46 -> 1 | J23: ='Baza (2)'!M5 -> 0 | L23: ='Baza (2)'!M8 -> 0 | N23: ='Baza (2)'!N24 -> 0 | P23: 0
A24: AUDYT ENERGETYCZNY | J24: =IF(AND(Kalkulator!$C$11="TAK",Kalkulator!$I$15=""),2460,Kalkulator!$I$15-615) -> 2460 | L24: =$J$24/1.23 -> 2000
A25: ŚWIADECTWO CHARAKTERYSTYKI ENERGETYCZNEJ | H25: - | J25: =IF(AND(Kalkulator!$C$11="TAK",Kalkulator!$I$15=""),615,Kalkulator!$I$15-2460) -> 615 | L25: =$J$25/1.23 -> 500 | N25: =Baza!N25 -> 0 | P25: =J25-L25 -> 115
A26: Suma | H26: - | J26: =SUM(J19:K23,J24:K25) -> 3075 | L26: =SUM(L19:M23,L24:M25) -> 2500 | N26: =SUM(N19:O23) -> 0 | P26: =SUM(P19:Q23)+(J25-L25) -> 115
A27: Wysokość wpłaty własnej | J27: =(J26-N26) -> 3075
A29: Kwota brutto | E29: =Kalkulator!I19 -> 27000
A30: Kwota netto | E30: =Kalkulator!I17 -> 25000
A31: Dofinansowanie | E31: =Kalkulator!I13 -> 20500
A32: Wpłata własna klienta | E32: =Kalkulator!I21 -> 9575

Sheet Kalkulator cen MAX (hidden)
A2: Poziom dofinansowania | B2: Najwyższy
A4: Źródło Ciepła
B5: ilość | C5: Wartość umowy netto | D5: Wartość umowy brutto | E5: Cena netto | F5: Cena brutto | H5: 3 | I5: Poziom dofinansowania (pompa/kocioł)
A6: Pompa Ciepła | C6: =B6*E6 -> 0 | D6: =B6*F6 -> 0 | E6: =IF($B$2="Najwyższy",'Matryca termo'!E31,IF($B$2="Podwyższony",'Matryca termo'!G31)) -> 35200 | F6: =IF($B$2="Najwyższy",'Matryca termo'!F31,IF($B$2="Podwyższony",'Matryca termo'!H31)) -> 38016 | I6: Maksymalna kwota dotacji | J6: Kwota dotacji klienta
A7: Kocioł zgazowujący | C7: 0 | D7: 0 | E7: =IF($B$2="Najwyższy",'Matryca termo'!E32,IF($B$2="Podwyższony",'Matryca termo'!G32)) -> 20500 | F7: =IF($B$2="Najwyższy",'Matryca termo'!F32,IF($B$2="Podwyższony",'Matryca termo'!H32)) -> 22140 | H7: Pompa ciepła | I7: 55700 | J7: =IF(H5=1,'Matryca termo'!K21,IF(H5=2,'Matryca termo'!K22,IF(H5=3,'Matryca termo'!K23))) -> 55700
A8: Kocioł na pellet | C8: 0 | D8: 0 | E8: =IF($B$2="Najwyższy",'Matryca termo'!E33,IF($B$2="Podwyższony",'Matryca termo'!G33)) -> 20500 | F8: =IF($B$2="Najwyższy",'Matryca termo'!F33,IF($B$2="Podwyższony",'Matryca termo'!H33)) -> 22140 | H8: Kocioł | I8: 41000 | J8: =IF(H5=1,'Matryca termo'!G21,IF(H5=2,'Matryca termo'!G22,IF(H5=3,'Matryca termo'!G23))) -> 41000
A9: CO/CWU | C9: 0 | D9: 0 | E9: =IF($B$2="Najwyższy",'Matryca termo'!E34,IF($B$2="Podwyższony",'Matryca termo'!G34)) -> 20500 | F9: =IF($B$2="Najwyższy",'Matryca termo'!F34,IF($B$2="Podwyższony",'Matryca termo'!H34)) -> 22140
A10: Audyt energetyczny i świadectwo | C10: 0 | D10: 0 | E10: =IF($B$2="Najwyższy",'Matryca termo'!E47,IF($B$2="Podwyższony",'Matryca termo'!G47)) -> 1600 | F10: =IF($B$2="Najwyższy",'Matryca termo'!F47,IF($B$2="Podwyższony",'Matryca termo'!H47)) -> 1968 | H10: 9 | I10: Przedział klienta (dofinansowanie + efektywność)
A11: Rekuperacja | C11: 0 | D11: 0 | E11: =IF($B$2="Najwyższy",'Matryca termo'!E44,IF($B$2="Podwyższony",'Matryca termo'!G44)) -> 2000 | F11: =IF($B$2="Najwyższy",'Matryca termo'!F44,IF($B$2="Podwyższony",'Matryca termo'!H44)) -> 2160 | I11: Maksymalna kwota dotacji | J11: Kwota dotacji klienta
H12: Pompa + Termo | I12: 140300 | J12: =IF(H10=1,'Matryca termo'!J1,IF(H10=2,'Matryca termo'!J2,IF(H10=3,'Matryca termo'!J3,IF(H10=4,'Matryca termo'!J4,IF(H10=5,'Matryca termo'!J5,IF(H10=6,'Matryca termo'!J6,IF(H10=7,'Matryca termo'!J7,IF(H10=8,'Matryca termo'!J8,IF(H10=9,'Matryca termo'!J9))))))))) -> 141900
A13: Wartość umowy | C13: =SUM(C6:C11) -> 0 | D13: =SUM(D6:D11) -> 0 | H13: Kocioł + Termo | I13: 125600 | J13: =IF(H10=1,'Matryca termo'!F1,IF(H10=2,'Matryca termo'!F2,IF(H10=3,'Matryca termo'!F3,IF(H10=4,'Matryca termo'!F4,IF(H10=5,'Matryca termo'!F5,IF(H10=6,'Matryca termo'!F6,IF(H10=7,'Matryca termo'!F7,IF(H10=8,'Matryca termo'!F8,IF(H10=9,'Matryca termo'!F9))))))))) -> 125600
H14: Termo | I14: 84600 | J14: =IF(H10=1,'Matryca termo'!B1,IF(H10=2,'Matryca termo'!B2,IF(H10=3,'Matryca termo'!B3,IF(H10=4,'Matryca termo'!B4,IF(H10=5,'Matryca termo'!B5,IF(H10=6,'Matryca termo'!B6,IF(H10=7,'Matryca termo'!B7,IF(H10=8,'Matryca termo'!B8,IF(H10=9,'Matryca termo'!B9))))))))) -> 84600
A15: Termomodernizacja
B16: ilość | C16: Wartość umowy netto | D16: Wartość umowy brutto | E16: Cena netto | F16: Cena brutto | H16: Przedział klienta (dofinansowanie + efektywność) | J16: Poziom dofinansowania (pompa/kocioł)
A17: Styropian - system (bialy klej) + Grunt szczepny (ściany) | C17: =B17*E17 -> 0 | D17: =B17*F17 -> 0 | E17: =IF($B$2="Najwyższy",'Matryca termo'!E35,IF($B$2="Podwyższony",'Matryca termo'!G35)) -> 250 | F17: =IF($B$2="Najwyższy",'Matryca termo'!F35,IF($B$2="Podwyższony",'Matryca termo'!H35)) -> 270 | H17: 1. | I17: Podstawowy(<80) | J17: 1. Podstawowy (40%)
A18: Piana PUR (20cm) | C18: 0 | D18: =B18*F18 -> 0 | E18: =IF($B$2="Najwyższy",'Matryca termo'!E36,IF($B$2="Podwyższony",'Matryca termo'!G36)) -> 200 | F18: =IF($B$2="Najwyższy",'Matryca termo'!F36,IF($B$2="Podwyższony",'Matryca termo'!H36)) -> 216 | H18: 2. | I18: Podstawowy(80-140) | J18: 2. Podwyższony (70%)
A19: Piana PUR (25cm)-strop | C19: 0 | D19: 0 | E19: =IF($B$2="Najwyższy",'Matryca termo'!E37,IF($B$2="Podwyższony",'Matryca termo'!G37)) -> 200 | F19: =IF($B$2="Najwyższy",'Matryca termo'!F37,IF($B$2="Podwyższony",'Matryca termo'!H37)) -> 216 | H19: 3. | I19: Podstawowy(>140) | J19: 3. Najwyższy (100%)
A20: Welna -> na zakladke bez folii paroizolacyjnej (do 25cm) | C20: 0 | D20: 0 | E20: =IF($B$2="Najwyższy",'Matryca termo'!E38,IF($B$2="Podwyższony",'Matryca termo'!G38)) -> 200 | F20: =IF($B$2="Najwyższy",'Matryca termo'!F38,IF($B$2="Podwyższony",'Matryca termo'!H38)) -> 216 | H20: 4. | I20: Podwyższony(<80)
A21: Welna -> na zakladke z folia paroizolacyjna (do 25cm) | C21: 0 | D21: 0 | E21: =IF($B$2="Najwyższy",'Matryca termo'!E39,IF($B$2="Podwyższony",'Matryca termo'!G39)) -> 200 | F21: =IF($B$2="Najwyższy",'Matryca termo'!F39,IF($B$2="Podwyższony",'Matryca termo'!H39)) -> 216 | H21: 5. | I21: Podwyższony(80-140)
A22: Welna wdmuchiwana (do 20cm) | C22: 0 | D22: 0 | E22: =IF($B$2="Najwyższy",'Matryca termo'!E40,IF($B$2="Podwyższony",'Matryca termo'!G40)) -> 200 | F22: =IF($B$2="Najwyższy",'Matryca termo'!F40,IF($B$2="Podwyższony",'Matryca termo'!H40)) -> 216 | H22: 6. | I22: Podwyższony(>140)
A23: Welna wdmuchiwana (do 25cm) | C23: 0 | D23: 0 | E23: =IF($B$2="Najwyższy",'Matryca termo'!E41,IF($B$2="Podwyższony",'Matryca termo'!G41)) -> 200 | F23: =IF($B$2="Najwyższy",'Matryca termo'!F41,IF($B$2="Podwyższony",'Matryca termo'!H41)) -> 216 | H23: 7. | I23: Najwyższy(<80)
A24: Styropian -> na zakladke bez folii paroizolacyjnej (do 25cm) | C24: 0 | D24: 0 | E24: =IF($B$2="Najwyższy",'Matryca termo'!E42,IF($B$2="Podwyższony",'Matryca termo'!G42)) -> 200 | F24: =IF($B$2="Najwyższy",'Matryca termo'!F42,IF($B$2="Podwyższony",'Matryca termo'!H42)) -> 216 | H24: 8. | I24: Najwyższy(80-140)
A25: Styropian -> na zakladke z folia paroizolacyjna (do 25cm) | C25: 0 | D25: 0 | E25: =IF($B$2="Najwyższy",'Matryca termo'!E43,IF($B$2="Podwyższony",'Matryca termo'!G43)) -> 200 | F25: =IF($B$2="Najwyższy",'Matryca termo'!F43,IF($B$2="Podwyższony",'Matryca termo'!H43)) -> 216 | H25: 9. | I25: Najwyższy(>140)
A26: Drzwi (m2) | C26: 0 | D26: 0 | E26: =IF($B$2="Najwyższy",'Matryca termo'!E45,IF($B$2="Podwyższony",'Matryca termo'!G45)) -> 2500 | F26: =IF($B$2="Najwyższy",'Matryca termo'!F45,IF($B$2="Podwyższony",'Matryca termo'!H45)) -> 2700
A27: Stolarka okienna (m2) | C27: 0 | D27: 0 | E27: =IF($B$2="Najwyższy",'Matryca termo'!E46,IF($B$2="Podwyższony",'Matryca termo'!G46)) -> 1200 | F27: =IF($B$2="Najwyższy",'Matryca termo'!F46,IF($B$2="Podwyższony",'Matryca termo'!H46)) -> 1296
A28: Parapety | C28: 0 | D28: 0 | E28: =IF($B$2="Najwyższy",'Matryca termo'!E48,IF($B$2="Podwyższony",'Matryca termo'!G48)) -> 150 | F28: =IF($B$2="Najwyższy",'Matryca termo'!F48,IF($B$2="Podwyższony",'Matryca termo'!H48)) -> 162
A29: Skuwanie tynków | C29: 0 | D29: 0 | E29: =IF($B$2="Najwyższy",'Matryca termo'!E49,IF($B$2="Podwyższony",'Matryca termo'!G49)) -> 60 | F29: =IF($B$2="Najwyższy",'Matryca termo'!F49,IF($B$2="Podwyższony",'Matryca termo'!H49)) -> 64.8
A30: Opierzenie | C30: 0 | D30: 0 | E30: =IF($B$2="Najwyższy",'Matryca termo'!E50,IF($B$2="Podwyższony",'Matryca termo'!G50)) -> 175 | F30: =IF($B$2="Najwyższy",'Matryca termo'!F50,IF($B$2="Podwyższony",'Matryca termo'!H50)) -> 189
A31: Ocieplenie podłóg | C31: 0 | D31: 0 | E31: =IF($B$2="Najwyższy",'Matryca termo'!E51,IF($B$2="Podwyższony",'Matryca termo'!G51)) -> 150 | F31: =IF($B$2="Najwyższy",'Matryca termo'!F51,IF($B$2="Podwyższony",'Matryca termo'!H51)) -> 162
A32: Audyt energetyczny i świadectwo | C32: 0 | D32: 0 | E32: =IF($B$2="Najwyższy",'Matryca termo'!E47,IF($B$2="Podwyższony",'Matryca termo'!G47)) -> 1600 | F32: =IF($B$2="Najwyższy",'Matryca termo'!F47,IF($B$2="Podwyższony",'Matryca termo'!H47)) -> 1968
A34: Wartość umowy | C34: =SUM(C17:C32) -> 0 | D34: =SUM(D17:D32) -> 0
A72: Najwyższy
A73: Podwyższony
A100: 0
A101: 1
A102: 2
A103: 3
A104: 4
A105: 5
A106: 6
A107: 7
A108: 8

Sheet Dane wejściowe (hidden)
A1: TYP BUDYNKU | B1: Poziom dotacji | C1: AUDYT + ŚWIADECTWO CHARAKTERYSTYKI | D1: PC/PIEC | E1: Źródło grzewcze | F1: TERMOMODERNIZACJA | G1: REKUPERACJA | I1: OCIEPLENIE DACH STROP | J1: Ocieplana przegroda | K1: Materiał | L1: Powierzchnia ocieplenia (m2) | N1: OCIEPLENIE ŚCIAN ZEWNĘTRZNYCH - STYROPIAN + TYNK | O1: Powierzchnia ocieplana (m2) | Q1: DRZWI | R1: Ilość drzwi (szt.) | V1: OKNA | W1: Ilość okien (szt.)
A2: do 80 kWh/m2/rok | B2: Najwyższy | C2: TAK | D2: TAK | E2: Pompa Ciepła | F2: TAK | G2: TAK | I2: TAK | J2: Strop | K2: Piana PUR | N2: TAK | Q2: TAK | R2: 1 | S2: Drzwi 1 | T2: Wysokość | V2: TAK | W2: 1 | X2: Okno 1 | Y2: Wysokość
A3: 80 - 140 kWh/m2/rok | B3: Podwyższony | C3: NIE | D3: NIE | E3: Kocioł na pellet | F3: NIE | G3: NIE | I3: NIE | J3: Dach | K3: Wełna wdmuchiwana | N3: NIE | Q3: NIE | R3: 2 | S3: Drzwi 2 | T3: Szerokość | V3: NIE | W3: 2 | X3: Okno 2 | Y3: Szerokość
A4: powyżej 140 kWh/m2/rok | E4: Kocioł zagazowujący drewno | K4: Wełna mineralna (z rolki) | R4: 3 | S4: Drzwi 3 | W4: 3 | X4: Okno 3
K5: Styropian twardy na strop | W5: 4 | X5: Okno 4
K6: STYROPAPA | W6: 5 | X6: Okno 5
W7: 6 | X7: Okno 6
K8: Piana PUR | W8: 7 | X8: Okno 7
K9: Wełna wdmuchiwana | W9: 8 | X9: Okno 8
K10: Wełna mineralna (z rolki) | W10: 9 | X10: Okno 9
K11: STYROPAPA | W11: 10 | X11: Okno 10
D17: =Kalkulator!$C$13 -> TAK | E17: =IF($D$17=$D$2,_xlfn.UNIQUE($E$2:$E$4),"") -> Pompa Ciepła | I17: =Kalkulator!$B$27 -> NIE | J17: =IF($I$17=$I$2,_xlfn.UNIQUE($J$2:$J$3),"") ->  | K17: =Kalkulator!C28 -> Strop | L17: =IF(AND($I$17=$I$2,$K$17=$J$2),_xlfn.UNIQUE($K$2:$K$6),_xlfn.UNIQUE($K$8:$K$11)) -> Piana PUR | Q17: =Kalkulator!$B$43 -> NIE | R17: =IF($Q$17=$Q$2,_xlfn.UNIQUE($R$2:$R$4),"") ->  | V17: =Kalkulator!$B$53 -> NIE | W17: =IF($V$17=$V$2,_xlfn.UNIQUE($W$2:$W$11),"") -> 
E18: Kocioł na pellet | L18: Wełna wdmuchiwana
E19: Kocioł zagazowujący drewno | L19: Wełna mineralna (z rolki)
L20: STYROPAPA

Sheet Baza (2) (hidden)
A1: Pompa Ciepła | B1: 35200 | E1: =F1*1.08 -> 0 | F1: =Kalkulator!I23 -> 0 | I1: =Kalkulator!C13 -> TAK | J1: =Kalkulator!B23 -> NIE | K1: =Kalkulator!B27 -> NIE | L1: =Kalkulator!B37 -> NIE | M1: =Kalkulator!B43 -> NIE | N1: =Kalkulator!B53 -> NIE | O1: =Kalkulator!B20 -> TAK | T1: =Kalkulator!B20 -> TAK | W1: =Kalkulator!C11 -> TAK | Z1: MODERNIZACJA CO | AA1: ILOŚĆ GRZEJNIKÓW
A2: Kocioł na pellet | B2: 25000 | F2: Cena netto | I2: =Kalkulator!C14 -> Kocioł na pellet | J2: REKUPERACJA | K2: =Kalkulator!C29 -> STYROPAPA | L2: =Kalkulator!B36 -> OCIEPLENIE ŚCIAN ZEWNĘTRZNYCH - STYROPIAN + TYNK | M2: =Kalkulator!C44 -> 1 | N2: =Kalkulator!C54 -> 1 | O2: =A9 -> AUDYT | T2: Termo | Z2: WYMIANA GRZEJNIKÓW
A3: Piec zagazowujący drewno | B3: 30000 | J3: =IF(J1=A11,B4,0) -> 0 | K3: =Kalkulator!C30 -> 1 | L3: =Kalkulator!C38 -> 1 | M3: =Kalkulator!C46 -> 1 | N3: =Kalkulator!C56 -> 1 | O3: =IF(O1='Baza (2)'!A11,B9,0) -> 2500 | T3: =IF(OR(J1=A11,K1=A11,L1=A11,M1=A11,N1=A11),A11,A12) -> NIE | Z3: WYMIANA GRZEJNIKÓW + RURY CO
A4: REKUPERACJA | B4: 2000 | F4: =SUM(I4:N4,F1) -> 25000 | I4: =IF(I1=A11,(IF(E34=A1,B1,IF(E34=A2,B2,B3))+G35+I35),0) -> 25000 | J4: =IF(O1=A11,J3*Kalkulator!$C$24,0) -> 0 | K4: =IF(AND(O1=A11,K1=A11,K2<>'Dane wejściowe'!K6),K3*B5+Q35+R35+S35+T35,IF(AND(O1=A11,K1=A11,K2='Dane wejściowe'!K6),K3*350+Q35+R35+S35+T35,0)) -> 0 | L4: =IF(AND(O1=A11,L1=A11),L3*B6+N35+O35,0) -> 0 | M4: =IF(AND(O1=A11,M1=A11),M3*B7+M35,0) -> 0 | N4: =IF(AND(O1=A11,N1=A11),N3*B8+K35,0) -> 0 | O4: =IF(SUM(I4:N4)>0,O3,0) -> 2500 | T4: =IF(OR(K1=A11,L1=A11,M1=A11,N1=A11),A11,A12) -> NIE
A5: OCIEPLENIE DACH STROP | B5: 200 | F5: =IF(F4>0,F4,0) -> 25000 | I5: =IF(A12=Kalkulator!B20,('Baza (2)'!I4*1.08)+'Baza (2)'!E1,'Baza (2)'!I4*1.08) -> 27000 | J5: =J4*1.08 -> 0 | K5: =K4*1.08 -> 0 | L5: =IF(AND(T1=A11,L4>0),L4*1.08+E1,L4*1.08) -> 0 | M5: 0 | N5: 0
A6: OCIEPLENIE ŚCIAN ZEWNĘTRZNYCH | B6: 300 | F6: =IF(F4>0,(F5*0.08),0) -> 2000 | I6: =_xlfn.IFS(F10='Dane wejściowe'!B3,'Baza (2)'!I4*0.7,'Baza (2)'!F10='Dane wejściowe'!B2,'Baza (2)'!I4) -> 25000
A7: DRZWI | B7: 2500
A8: OKNA | B8: 1200 | F8: =F4+F6 -> 27000 | I8: =IF(A12=Kalkulator!B20,'Baza (2)'!I4+'Baza (2)'!F1,'Baza (2)'!I4) -> 25000 | J8: =J4 -> 0 | K8: 0 | L8: =IF(AND(T1=A11,L4>0),L4+F1,L4) -> 0 | M8: 0 | N8: 0 | O8: 2500 | X8: 1
A9: AUDYT | B9: 2500 | I9: =I5-I8 -> 2000 | J9: =J5-J8 -> 0 | K9: 0 | L9: 0 | M9: 0 | N9: 0 | X9: 2
F10: =Kalkulator!C9 -> Najwyższy | X10: 3
A11: TAK | X11: 4
A12: NIE | X12: 5
X13: 6
X14: 7
X15: 8
N17: =Kalkulator!I12 -> 124000
N18: =Kalkulator!I13 -> 20500 | P18: Modernizacja CO i CWU | Q18: =IF(I1=A11,_xlfn.IFS(F10=Matryca!S2,'Baza (2)'!P20,F10=Matryca!S1,'Baza (2)'!P19),0) -> 20500
M19: Kocioł na pellet | N19: ='dotacja 18.07.'!I4 -> 20500 | P19: 20500
M20: Rekuperacja | N20: ='dotacja 18.07.'!I29 -> 0 | P20: =P19*0.7 -> 14350
M21: Dach/stropodach/strop pod nieogrzewanym poddaszem | N21: ='dotacja 18.07.'!I21 -> 0
M22: Ściany zewnętrzne/przegrody pionowe | N22: ='dotacja 18.07.'!I23 -> 0
M23: Stolarka okienna | N23: ='dotacja 18.07.'!I27 -> 0
M24: Stolarka drzwiowa – drzwi zewnętrzne | N24: ='dotacja 18.07.'!I25 -> 0
M25: Audyt | N25: 0
F27: =IF((Kalkulator!I19-F1*1.08)-Kalkulator!I13>0,((Kalkulator!I19-F1*1.08)-Kalkulator!I13)+Kalkulator!I15,(Kalkulator!I23*1.08)+Kalkulator!I15) -> 9575
F28: =F27+Kalkulator!I23*1.08 -> 9575
N32: OCIEPLENIE ŚCIAN ZEWNĘTRZNYCH - STYROPIAN + TYNK | P32: OCIEPLENIE DACH STROP
E33: Źródło grzewcze | G33: zbiornik cwu | H33: modernizacja co | I33: ilość grzejników | J33: Okna | K33: m2 | L33: Drzwi | M33: ilość | N33: =Kalkulator!B39 ->  | O33: =Kalkulator!B40 ->  | P33: =Kalkulator!B30 ->  | Q33: =Kalkulator!B31 ->  | R33: =Kalkulator!B32 ->  | S33: =Kalkulator!B33 ->  | T33: =Kalkulator!B34 -> 
E34: =Kalkulator!C14 -> Kocioł na pellet | G34: =IF(E34="Pompa Ciepła",0,Kalkulator!C15) -> TAK | H34: =Kalkulator!C16 -> WYMIANA GRZEJNIKÓW | I34: =Kalkulator!C17 -> 0 | J34: =Kalkulator!C55 -> Białe | K34: =Kalkulator!C56 -> 1 | L34: =Kalkulator!C45 -> Pełne | M34: =Kalkulator!C44 -> 1 | N34: =Kalkulator!C39 -> 1 | O34: =Kalkulator!C40 -> 1 | P34: =Kalkulator!C30 -> 1 | Q34: =Kalkulator!C31 -> NIE | R34: =Kalkulator!C32 -> 0 | S34: =Kalkulator!C33 -> 0 | T34: =Kalkulator!C34 -> 0
A35: PC 6 kW | B35: 45000 | F35: =IF(E34=A1,B1,IF(E34=A2,B2,B3)) -> 25000 | G35: =IF(G34="TAK",0,0) -> 0 | I35: =IF(H34="Wymiana Grzejników",'Baza (2)'!I34*1850,'Baza (2)'!I34*2800) -> 0 | K35: =IF(J34="Kolor Obustronny",K34*200,0) -> 0 | M35: =IF(L34="Tłoczone",M34*500,IF(L34="Przeszklone",M34*1000,0)) -> 0 | N35: =130*N34 -> 130 | O35: =150*O34 -> 150 | Q35: =IF(AND(Q33="Folia paroizolacyjna",Q34="TAK"),P34*5,IF(AND(Q33="Uchwyty GK",Q34="TAK"),P34*8,0)) -> 0 | R35: =IF(AND(R33="Membrana paroprzepuszczalna",R34="TAK"),P34*5,IF(R33="Murowanie ogniomurów + przełożenie rynien (mb)",R34*150,0)) -> 0 | S35: =IF(S33="Opierzenie (mb)",S34*150,0) -> 0 | T35: =IF(T33="Murowanie komina (szt.)",T34*700,0) -> 0
A36: PC 8 kW | B36: 46000 | Q36: folia out | S36: ?
A37: PC 10 kW | B37: 47000
A38: PC 12 kW | B38: 48000
A39: PC 14 kW | B39: 49000
A40: PC 16 kW | B40: 50000
A41: Piec zgazowujący drewno | B41: 39500
A42: Piec na pellet 12 kW | B42: 37500
A43: Piec na pellet 18 kW | B43: 38500
A44: Piec na pellet 24 kW | B44: 39500
A47: =IF(Kalkulator!$C$14='Baza (2)'!$A$1,_xlfn.UNIQUE('Baza (2)'!$A$35:$A$40),IF(Kalkulator!$C$14='Baza (2)'!$A$2,_xlfn.UNIQUE('Baza (2)'!$A$42:$A$44),'Baza (2)'!$A$41)) -> Piec na pellet 12 kW
A48: Piec na pellet 18 kW
A49: Piec na pellet 24 kW

Sheet Baza (hidden)
A1: Pompa Ciepła | B1: 55700 | E1: =F1*1.08 -> 0 | F1: =Kalkulator!I23 -> 0 | I1: =Kalkulator!C13 -> TAK | J1: =Kalkulator!B23 -> NIE | K1: =Kalkulator!B27 -> NIE | L1: =Kalkulator!B37 -> NIE | M1: =Kalkulator!B43 -> NIE | N1: =Kalkulator!B53 -> NIE | O1: =Kalkulator!B20 -> TAK | T1: =Kalkulator!B20 -> TAK | W1: =Kalkulator!C11 -> TAK | Z1: MODERNIZACJA CO | AA1: ILOŚĆ GRZEJNIKÓW
A2: Piec na pellet | B2: 41000 | F2: Cena netto | I2: =Kalkulator!C14 -> Kocioł na pellet | J2: REKUPERACJA | K2: =Kalkulator!C29 -> STYROPAPA | L2: =Kalkulator!B36 -> OCIEPLENIE ŚCIAN ZEWNĘTRZNYCH - STYROPIAN + TYNK | M2: =Kalkulator!C44 -> 1 | N2: =Kalkulator!C54 -> 1 | O2: =A9 -> AUDYT | T2: Termo | Z2: WYMIANA GRZEJNIKÓW
A3: Piec zagazowujący drewno | B3: 41000 | J3: =IF(J1=A11,B4,0) -> 0 | K3: =Kalkulator!C30 -> 1 | L3: =Kalkulator!C38 -> 1 | M3: =Kalkulator!C46 -> 1 | N3: =Kalkulator!C56 -> 1 | O3: =IF(O1=Baza!A11,B9,0) -> 1600 | T3: =IF(OR(J1=A11,K1=A11,L1=A11,M1=A11,N1=A11),A11,A12) -> NIE | Z3: WYMIANA GRZEJNIKÓW + RURY CO
A4: REKUPERACJA | B4: 2000 | F4: =SUM(I4:N4,F1) ->  | I4: =IF(I1=A11,_xlfn.IFS(I2=A1,B1,I2=A2,B2,I2=A3,B3),0) ->  | J4: =IF(O1=A11,J3*8,0) -> 0 | K4: =IF(AND(O1=A11,K1=A11),K3*B5,0) -> 0 | L4: =IF(AND(O1=A11,L1=A11),L3*B6,0) -> 0 | M4: =IF(AND(O1=A11,M1=A11),M3*B7,0) -> 0 | N4: =IF(AND(O1=A11,N1=A11),N3*B8,0) -> 0 | O4: =IF(SUM(I4:N4)>0,O3,0) ->  | T4: =IF(OR(K1=A11,L1=A11,M1=A11,N1=A11),A11,A12) -> NIE
A5: OCIEPLENIE DACH STROP | B5: 200 | F5: =IF(F4>0,F4,0) ->  | I5: =IF(A12=Kalkulator!B20,(Baza!I4*1.08)+Baza!E1,Baza!I4*1.08) ->  | J5: =J4*1.08 -> 0 | K5: 0 | L5: =IF(AND(T1=A11,L4>0),L4*1.08+E1,L4*1.08) -> 0 | M5: 0 | N5: 0
A6: OCIEPLENIE ŚCIAN ZEWNĘTRZNYCH | B6: 250 | F6: =IF(F4>0,(F5*0.08),0) ->  | I6: =_xlfn.IFS(F10='Dane wejściowe'!B3,Baza!I4*0.7,Baza!F10='Dane wejściowe'!B2,Baza!I4) -> 
A7: DRZWI | B7: 2500
A8: OKNA | B8: 1200 | F8: =F4+F6 ->  | I8: =IF(A12=Kalkulator!B20,Baza!I4+Baza!F1,Baza!I4) ->  | J8: =J4 -> 0 | K8: 0 | L8: =IF(AND(T1=A11,L4>0),L4+F1,L4) -> 0 | M8: 0 | N8: 0 | X8: 1
A9: AUDYT | B9: 1600 | I9: =I5-I8 ->  | J9: =J5-J8 -> 0 | K9: 0 | L9: 0 | M9: 0 | N9: 0 | X9: 2
F10: =Kalkulator!C9 -> Najwyższy | X10: 3
A11: TAK | X11: 4
A12: NIE | X12: 5
X13: 6
X14: 7
X15: 8
N17: =Kalkulator!I12 -> 124000
N18: =Kalkulator!I13 -> 20500 | P18: Modernizacja CO i CWU | Q18: =IF(I1=A11,_xlfn.IFS(F10=Matryca!S2,Baza!P20,F10=Matryca!S1,Baza!P19),0) -> 20500
M19: Kocioł na pellet | N19: =IF(I1=A11,_xlfn.IFS(AND(I2=A1,F10=Matryca!S2),Matryca!K22,AND(I2=A1,F10=Matryca!S1),Matryca!K23,AND(I2=A2,F10=Matryca!S2),Matryca!G22,AND(I2=A2,F10=Matryca!S1),Matryca!G23,AND(I2=A3,F10=Matryca!S2),Matryca!G22,AND(I2=A3,F10=Matryca!S1),Matryca!G23)) ->  | P19: 20500
M20: Rekuperacja | N20: =IF(J4>0,J4,0) -> 0 | P20: =P19*0.7 -> 14350
M21: Dach/stropodach/strop pod nieogrzewanym poddaszem | N21: =IF(K4>0,K4,0) -> 0
M22: Ściany zewnętrzne/przegrody pionowe | N22: =N18-SUM(N19:N21,N23:N25) -> 
M23: Stolarka okienna | N23: =IF(N4>0,N4,0) -> 0
M24: Stolarka drzwiowa – drzwi zewnętrzne | N24: =IF(M4>0,M4,0) -> 0
M25: Audyt | N25: 0
F27: =IF((Kalkulator!I19-F1*1.08)-Kalkulator!I13>0,((Kalkulator!I19-F1*1.08)-Kalkulator!I13)+Kalkulator!I15,(Kalkulator!I23*1.08)+Kalkulator!I15) -> 9575
F28: =F27+Kalkulator!I23*1.08 -> 9575
A35: PC 6 kW
A36: PC 8 kW
A37: PC 10 kW
A38: PC 12 kW
A39: PC 14 kW
A40: PC 16 kW
A41: Piec zgazowujący drewno
A42: Piec na pellet 12 kW
A43: Piec na pellet 18 kW
A44: Piec na pellet 24 kW
A47: =IF(Kalkulator!$C$14=Baza!$A$1,_xlfn.UNIQUE(Baza!$A$35:$A$40),IF(Kalkulator!$C$14=Baza!$A$2,_xlfn.UNIQUE(Baza!$A$42:$A$44),Baza!$A$41)) -> Piec zgazowujący drewno

Sheet Kredyt (hidden)
E1: Kwota instalacji | F1: Wkład włany | G1: Kwota kredytu | H1: RRSO | I1: RRSO/m-c | J1: Okres kredytowania | K1: M-c | L1: Rata | M1: Warunki
A2: 2 | D2: Inbank | E2: =Kalkulator!I21 -> 9575 | F2: =Kalkulator!$I$9 -> 0 | G2: =E2-F2 -> 9575 | H2: 0.1172 | I2: =H2/12 -> 0.009766666667 | J2: =Kalkulator!H9 -> 5 | K2: =J2*12 -> 60 | L2: =(G2/K2)+G2*I2 -> 253.0991667 | M2: =IFERROR(IF(J2=VLOOKUP(J2,A2:A10,1,0),L2,0),"-") -> 253.0991667
A3: 3 | D3: Santander | E3: =Kalkulator!I21 -> 9575 | F3: =Kalkulator!$I$9 -> 0 | G3: =E3-F3 -> 9575 | H3: 0.1139 | I3: 0.009491666667 | J3: =Kalkulator!H9 -> 5 | K3: =IFERROR(J3*12,120) -> 60 | L3: 250.4660417 | M3: =IFERROR(IF(J3=VLOOKUP(J3,A2:A6,1,0),L3,0),"-") -> 250.4660417
A4: 4 | D4: Cofidis | E4: =Kalkulator!I21 -> 9575 | F4: =Kalkulator!$I$9 -> 0 | G4: =E4-F4 -> 9575 | H4: 0.1267 | I4: =H4/12 -> 0.01055833333 | J4: =Kalkulator!H9 -> 5 | K4: =J4*12 -> 60 | L4: =(G4/K4)+G4*I4 -> 260.679375 | M4: =IFERROR(IF(J4=VLOOKUP(J4,A3:A7,1,0),L4,0),"-") -> 260.679375
A5: 5
A6: 6
A7: 7
A8: 8
A9: 9
A10: 10

Sheet Matryca (hidden)
A1: Podstawowy(<80) | B1: Nie dotyczy | E1: Podstawowy(<80) | F1: Nie dotyczy | I1: Podstawowy(<80) | J1: Nie dotyczy | M1: =Kalkulator!C9 -> Najwyższy | N1: =Kalkulator!B14 -> Źródło grzewcze | O1: =Kalkulator!C14 -> Kocioł na pellet | P1: =Kalkulator!C13 -> TAK | R1: TAK | S1: Najwyższy | T1: Pompa Ciepła | W1: =Kalkulator!B20 -> TAK | X1: =IF(AND(Matryca!W1=Matryca!R2,Matryca!P1=Matryca!R2),Matryca!R2,Matryca!R1) -> TAK
A2: Podstawowy(80-140) | B2: Nie dotyczy | E2: Podstawowy(80-140) | F2: 37200 | I2: Podstawowy(80-140) | J2: Nie dotyczy | R2: NIE | S2: Podwyższony | T2: Kocioł na pellet
A3: Podstawowy(>140) | B3: Nie dotyczy | E3: Podstawowy(>140) | F3: 51200 | I3: Podstawowy(>140) | J3: Nie dotyczy | N3: =IF(X1=R1,IF(P1=R1,_xlfn.IFS(AND(M1=S1,O1=T1,W1=R1),N9,AND(M1=S2,O1=T1,W1=R1),N9,AND(M1=S1,O1=T2,W1=R1),N10,AND(M1=S2,O1=T2,W1=R1),N10,AND(M1=S1,O1=T3,W1=R1),N10,AND(M1=S2,O1=T3,W1=R1),N10, AND(M1=S1,O1=T1,W1=R2),K23,AND(M1=S2,O1=T1,W1=R2),K22,AND(M1=S1,O1=T2,W1=R2),G23,AND(M1=S2,O1=T2,W1=R2),G22,AND(M1=S1,O1=T3,W1=R2),G23,AND(M1=S2,O1=T3,W1=R2),G22 ),_xlfn.IFS(M1=S1,N11,M1=S2,N11)),0) -> 124000 | T3: Kocioł zagazowujący drewno
A4: Podwyższony(<80) | B4: Nie dotyczy | E4: Podwyższony(<80) | F4: Nie dotyczy | I4: Podwyższony(<80) | J4: Nie dotyczy
A5: Podwyższony(80-140) | B5: =33600 -> 33600 | E5: Podwyższony(80-140) | F5: =63900-1600 -> 62300 | I5: Podwyższony(80-140) | J5: =B5+K22 -> 72590
A6: Podwyższony(>140) | B6: 58100 | E6: Podwyższony(>140) | F6: =88400-1600 -> 86800 | I6: Podwyższony(>140) | J6: =B6+K22 -> 97090
A7: Najwyższy(<80) | B7: Nie dotyczy | E7: Najwyższy(<80) | F7: Nie dotyczy | I7: Najwyższy(<80) | J7: Nie dotyczy
A8: Najwyższy(80-140) | B8: Nie dotyczy | E8: Najwyższy(80-140) | F8: Nie dotyczy | I8: Najwyższy(80-140) | J8: Nie dotyczy
A9: Najwyższy(>140) | B9: =83000 -> 83000 | E9: Najwyższy(>140) | F9: =125600-1600 -> 124000 | I9: Najwyższy(>140) | J9: =B9+K23 -> 138700 | M9: Pompa + Termo | N9: =IF(M1=S2,_xlfn.IFS(M27=M18,J4,M27=M19,J5,M27=M20,J6),_xlfn.IFS(M27=M18,J7,M27=M19,J8,M27=M20,J9)) -> 138700
M10: Kocioł + Termo | N10: =IF(M1=S2,_xlfn.IFS(M27=M18,F4,M27=M19,F5,M27=M20,F6),_xlfn.IFS(M27=M18,F7,M27=M19,F8,M27=M20,F9)) -> 124000
M11: Termo | N11: =IF(M1=S2,_xlfn.IFS(M27=M18,B4,M27=M19,B5,M27=M20,B6),_xlfn.IFS(M27=M18,B7,M27=M19,B8,M27=M20,B9)) -> 83000
N13: =IF(X1=R1,IF(W1=R2,N3,IF(P1=R1,_xlfn.IFS(O1=T1,N9,O1=T2,N10,O1=T3,N10),N11)),0) -> 124000
A15: termo | E15: kocioł + termo | I15: pompa + termo
M18: do 80 kWh/m2/rok
M19: 80 - 140 kWh/m2/rok
E20: kocioł | F20: progi | G20: zł | I20: pompa | J20: progi | K20: zł | M20: powyżej 140 kWh/m2/rok
E21: 41000 | F21: 0.4 | G21: =E21*F21 -> 16400 | I21: 55700 | J21: 0.4 | K21: =I21*J21 -> 22280
F22: 0.7 | G22: =E21*F22 -> 28700 | J22: 0.7 | K22: =I21*J22 -> 38990
F23: 1 | G23: =41000 -> 41000 | J23: 1 | K23: =55700 -> 55700
M27: =Kalkulator!C8 -> powyżej 140 kWh/m2/rok

Sheet dotacja 18.07. (hidden)
H1: =Kalkulator!C9 -> Najwyższy
H2: =Kalkulator!C8 -> powyżej 140 kWh/m2/rok
G3: =Kalkulator!B13 -> PC/KOCIOŁ | I3: =SUM(I4:I30) -> 20500 | L3: WCZEŚNIEJ WYKORZYSTANA DOTACJA
A4: Kocioł na pellet | G4: =Kalkulator!C13 -> TAK | H4: =Kalkulator!C14 -> Kocioł na pellet | I4: =IF(AND(G4="TAK",OR(H4=A4,H4=A5)),VLOOKUP(H1,A7:B8,2,FALSE),IF(AND(G4="TAK",H4=A11),VLOOKUP(H1,A13:B14,2,FALSE),0)) -> 20500 | L4: JEŻELI($C$9='Dane wejściowe'!$B$3;MIN($I$12;($I$17-I23)*0,7);WARUNKI(Matryca!N3="Nie dotyczy";Matryca!N13;Matryca!N3<($I$17-I23);Matryca!N3;Matryca!N3>=($I$17-I23);I17-I23))
A5: Kocioł zagazowujący drewno
A7: Podwyższony | B7: 14350 | L7: =Kalkulator!I12 -> 124000
A8: Najwyższy | B8: 20500
A11: Pompa Ciepła
A13: Podwyższony | B13: 24640
A14: Najwyższy | B14: 35200
A16: Modernizacja CO | B16: ='Baza (2)'!I35 -> 0 | H16: =Kalkulator!C16 -> WYMIANA GRZEJNIKÓW | I16: =IF(G4="TAK",VLOOKUP(H1,A18:B19,2,FALSE),0) -> 0
H17: =Kalkulator!C17 -> 0
A18: Podwyższony | B18: =IF(B16>=14300,14300,B16*0.7) -> 0
A19: Najwyższy | B19: =IF(B16>=20500,20500,B16) -> 0
F20: =Kalkulator!B20 -> TAK | G20: =Kalkulator!B26 -> OCIEPLENIE DACH STROP | H20: =Kalkulator!C28 -> Strop
A21: =Kalkulator!C28 -> Strop | B21: =Kalkulator!C30 -> 1 | G21: =Kalkulator!B27 -> NIE | H21: =Kalkulator!C30 -> 1 | I21: =IF(AND(F20="TAK",G21="TAK"),H22,0) -> 0
H22: =VLOOKUP(H1,A23:B24,2,FALSE)*H21 -> 200
A23: Podwyższony | B23: 140 | G23: =Kalkulator!B36 -> OCIEPLENIE ŚCIAN ZEWNĘTRZNYCH - STYROPIAN + TYNK | H23: =Kalkulator!C38 -> 1 | I23: =IF(AND(F20="TAK",G24="TAK"),H24,0) -> 0
A24: Najwyższy | B24: 200 | G24: =Kalkulator!B37 -> NIE | H24: =VLOOKUP(H1,A28:B29,2,FALSE)*H23 -> 250
G25: DRZWI | H25: =Kalkulator!C46 -> 1 | I25: =IF(AND(F20="TAK",G26="TAK"),H26,0) -> 0
A26: =Kalkulator!B36 -> OCIEPLENIE ŚCIAN ZEWNĘTRZNYCH - STYROPIAN + TYNK | G26: =Kalkulator!B43 -> NIE | H26: =VLOOKUP(H1,A33:B34,2,FALSE)*H25 -> 2500
G27: =Kalkulator!B52 -> OKNA | H27: =Kalkulator!C56 -> 1 | I27: =IF(AND(F20="TAK",G28="TAK"),H28,0) -> 0
A28: Podwyższony | B28: 175 | G28: =Kalkulator!B53 -> NIE | H28: =VLOOKUP(H1,A38:B39,2,FALSE)*H27 -> 1200
A29: Najwyższy | B29: 250 | G29: =Kalkulator!B22 -> REKUPERACJA | H29: =Kalkulator!C24 -> 4 | I29: =IF(AND(F20="TAK",G30="TAK"),H30,0) -> 0
G30: =Kalkulator!B23 -> NIE | H30: =VLOOKUP(H1,A43:B44,2,FALSE)*H29 -> 8000
A31: DRZWI | B31: =Kalkulator!C46 -> 1
A33: Podwyższony | B33: 1750
A34: Najwyższy | B34: 2500
A36: OKNA | B36: =Kalkulator!C56 -> 1
A38: Podwyższony | B38: 840
A39: Najwyższy | B39: 1200
A41: REKUPERACJA
A43: Podwyższony | B43: 1400
A44: Najwyższy | B44: 2000

Sheet Matryca termo (hidden)
A1: Podstawowy(<80) | B1: Nie dotyczy | E1: Podstawowy(<80) | F1: Nie dotyczy | I1: Podstawowy(<80) | J1: Nie dotyczy
A2: Podstawowy(80-140) | B2: 19840 | E2: Podstawowy(80-140) | F2: 37200 | I2: Podstawowy(80-140) | J2: =B2+K21+1600 -> 43720
A3: Podstawowy(>140) | B3: 33840 | E3: Podstawowy(>140) | F3: 51200 | I3: Podstawowy(>140) | J3: =B3+K21+1600 -> 57720
A4: Podwyższony(<80) | B4: Nie dotyczy | E4: Podwyższony(<80) | F4: Nie dotyczy | I4: Podwyższony(<80) | J4: Nie dotyczy
A5: Podwyższony(80-140) | B5: 34720 | E5: Podwyższony(80-140) | F5: 63900 | I5: Podwyższony(80-140) | J5: =B5+K22+1600 -> 75310
A6: Podwyższony(>140) | B6: 59220 | E6: Podwyższony(>140) | F6: 88400 | I6: Podwyższony(>140) | J6: =B6+K22+1600 -> 99810
A7: Najwyższy(<80) | B7: Nie dotyczy | E7: Najwyższy(<80) | F7: Nie dotyczy | I7: Najwyższy(<80) | J7: Nie dotyczy
A8: Najwyższy(80-140) | B8: Nie dotyczy | E8: Najwyższy(80-140) | F8: Nie dotyczy | I8: Najwyższy(80-140) | J8: Nie dotyczy
A9: Najwyższy(>140) | B9: 84600 | E9: Najwyższy(>140) | F9: 125600 | I9: Najwyższy(>140) | J9: =B9+K23+1600 -> 141900
A15: termo | E15: kocioł + termo | I15: pompa + termo
E20: kocioł | F20: progi | G20: zł | I20: pompa | J20: progi | K20: zł
E21: 41000 | F21: 0.4 | G21: =E21*F21 -> 16400 | I21: 55700 | J21: 0.4 | K21: =I21*J21 -> 22280
F22: 0.7 | G22: =E21*F22 -> 28700 | J22: 0.7 | K22: =I21*J22 -> 38990
F23: 1 | G23: 41000 | J23: 1 | K23: 55700
A30: Zakres | B30: Przyjęty koszt netto ER | C30: Przyjęty koszt netto Darmowy Remont | E30: Maksymalne ceny jednostkowe (poziom najwyższy) netto | F30: Maksymalne ceny jednostkowe (poziom najwyższy) brutto | G30: Maksymalne ceny jednostkowe (poziom podwyższony) netto | H30: Maksymalne ceny jednostkowe (poziom podwyższony) brutto
A31: PC | B31: 22500 | C31: 41000 | E31: 35200 | F31: 38016 | G31: 24640 | H31: 26611.2
A32: Kocioł zgazowujący | B32: 23500 | C32: 29400 | E32: 20500 | F32: 22140 | G32: 14350 | H32: 15498
A33: Kocioł na pellet | B33: 19500 | C33: 29400 | E33: 20500 | F33: 22140 | G33: 14350 | H33: 15498
A34: CO/CWU | B34: 5000 | C34: 5000 | E34: 20500 | F34: 22140 | G34: 14350 | H34: 15498
A35: Styropian - system (bialy klej) + Grunt szczepny (sciany) | B35: 165 | C35: 223 | E35: 250 | F35: 270 | G35: 175 | H35: 189
A36: Piana PUR (20cm) | B36: 72 | C36: 145 | E36: 200 | F36: 216 | G36: 140 | H36: 151.2
A37: Piana PUR (25cm)(strop) | B37: 85 | C37: 155 | E37: 200 | F37: 216 | G37: 140 | H37: 151.2
A38: Welna -> na zakladke bez folii paroizolacyjnej (do 25cm) | B38: 90 | C38: 145 | E38: 200 | F38: 216 | G38: 140 | H38: 151.2
A39: Welna -> na zakladke z folia paroizolacyjna (do 25cm) | B39: 95 | C39: 155 | E39: 200 | F39: 216 | G39: 140 | H39: 151.2
A40: Welna wdmuchiwana (do 20cm) | B40: 60 | C40: 133 | E40: 200 | F40: 216 | G40: 140 | H40: 151.2
A41: Welna wdmuchiwana (do 25cm) | B41: 65 | C41: 135 | E41: 200 | F41: 216 | G41: 140 | H41: 151.2
A42: Styropian -> na zakladke bez folii paroizolacyjnej (do 25cm) | B42: 100 | C42: 159 | E42: 200 | F42: 216 | G42: 140 | H42: 151.2
A43: Styropian -> na zakladke z folia paroizolacyjna (do 25cm) | B43: 105 | C43: 167 | E43: 200 | F43: 216 | G43: 140 | H43: 151.2
A44: Rekuperacja | B44: 1700 | C44: 1900 | D44: szt | E44: 2000 | F44: 2160 | G44: 1400 | H44: 1512
A45: Drzwi | B45: 2000 | C45: 2400 | D45: zł/m2 | E45: 2500 | F45: 2700 | G45: 1750 | H45: 1890
A46: Stolarka okienna | B46: 1120 | C46: 1120 | D46: zł/m2 | E46: 1200 | F46: 1296 | G46: 840 | H46: 907.2
A47: Audyt energetyczny i świadectwo | B47: 1600 | C47: 1600 | E47: 1600 | F47: 1968 | G47: 1120 | H47: 1377.6
A48: Parapety | B48: 150 | C48: 150 | D48: zł/m2 | E48: 150 | F48: 162 | G48: 105 | H48: 113.4
A49: Skuwanie tynków | B49: 60 | C49: 60 | D49: zł/m2 | E49: 60 | F49: 64.8 | G49: 42 | H49: 45.36
A50: Opierzenie | B50: 175 | C50: 175 | D50: zł/m2 | E50: 175 | F50: 189 | G50: 120 | H50: 129.6
A51: Ocieplenie podłóg | E51: 150 | F51: 162 | G51: 105 | H51: 113.4
A53: rekuperacja centralna | E53: 16700 | F53: do zakodowania i ukrycia póki co
